fUST/lending_fUST_20240305
["ID","MTS","AMOUNT","RATE_DAILY","PERIOD"]
[316667373,1709580638888,-422.52364018,0.00023999,2]
[316667375,1709580638897,-225.0,0.00023999,2]
[316667377,1709580638906,-500.0,0.00023999,2]
[316667379,1709580638915,-365.15051778,0.00023999,2]
[316667381,1709580638924,-500.0,0.00023999,2]
[316667383,1709580638933,-152.37704506,0.00023999,2]
[316667385,1709580638942,-342.82623691,0.00023999,2]
[316667387,1709580638952,-264.4576008,0.00024,3]
[316667389,1709580638961,-150.0,0.00024,2]
[316667391,1709580638970,-5273.93025112,0.00024,2]
[316667394,1709580638981,-10000.0,0.00024,2]
[316667395,1709580638990,-10000.0,0.00024,2]
[316667397,1709580638999,-10000.0,0.00024,2]
[316667400,1709580639012,-16714.96127507,0.00024,2]
[316667401,1709580639021,-1586.71325062,0.00024,2]
[316667403,1709580639030,-500.0,0.00024,3]
[316667405,1709580639039,-1356301.56014635,0.00024,6]
[316667408,1709580639051,-781.5,0.00024,6]
[316667588,1709580641120,-154.9690062,0.00023998,2]
[316667589,1709580641129,-3445.7309938,0.00024,6]
[316667741,1709580643125,-243.17267796,0.00023999,2]
[316667743,1709580643136,-59.4450482,0.00023999,2]
[316667749,1709580643185,-583.38293886,0.00023999,2]
[316667751,1709580643195,-83.691905,0.00024,6]
[316667753,1709580643208,-12163.6,0.00024,6]
[316668042,1709580646129,-263.10081276,0.00023999,2]
[316668044,1709580646139,-781.65092481,0.00023999,2]
[316668046,1709580646148,-50460.87479493,0.00024,6]
[316669476,1709581756312,-464.07540966,0.00019933,2]
[316669481,1709581802872,276.40903562,0.000189,2]
[316669737,1709581834413,-697.50319911,0.00019928,2]
[316669739,1709581834423,-214.57920582,0.00019929,2]
[316669741,1709581834432,-324.89545159,0.00019929,2]
[316669743,1709581834441,-883.98291073,0.0001993,2]
[316669745,1709581834450,-703.4462778,0.0001993,2]
[316669748,1709581834470,-535.78782311,0.00019931,2]
[316669750,1709581834480,-321.57741087,0.00019931,2]
[316669752,1709581834490,-11272.27407008,0.00019933,2]
[316670013,1709581838307,-155.79833176,0.00019927,2]
[316670014,1709581838316,-534.04631406,0.00019933,2]
[316670041,1709581841290,-3627.52853788,0.00019933,2]
[316670043,1709581841300,-557.80133072,0.00019935,2]
[316670045,1709581841310,-2325.195071,0.00019936,2]
[316670047,1709581841319,-781.65092481,0.00020688,2]
[316670048,1709581841328,-20851.44723378,0.00020689,2]
[316670049,1709581841338,-6319.97266994,0.0002069,2]
[316670088,1709581843334,-257.69720552,0.0002069,2]
[316670095,1709581846360,-3361.25,0.0002069,2]
[316670096,1709581846372,-4493.66624756,0.0002069,2]
[316670115,1709582062545,154.92253773,0.000176,2]
[316670116,1709582104119,184.27269041,0.000189,2]
[316670123,1709582405698,150.0,0.000189,2]
[316670132,1709582707285,150.0,0.000189,2]
[316670176,1709583008371,196.46682475,0.000189,2]
[316670221,1709583032660,-781.65092481,0.00021272,2]
[316670223,1709583032670,-703.4462778,0.00021272,2]
[316670225,1709583032679,-154.98450155,0.00021272,2]
[316670227,1709583032690,-1080.24298436,0.00021272,2]
[316670229,1709583032699,-883.98291073,0.00021272,2]
[316670231,1709583032708,-3141.40913344,0.00021272,2]
[316670233,1709583032717,-2595.57809913,0.00021272,2]
[316670235,1709583032726,-623.74333508,0.00021273,2]
[316670237,1709583032735,-1635.48761741,0.00021273,2]
[316670239,1709583032744,-3237.79565176,0.00021273,2]
[316670242,1709583032764,-10912.82409862,0.00021273,2]
[316670244,1709583032775,-1784.21638231,0.00021273,2]
[316670246,1709583032784,-324.89545159,0.00021274,2]
[316670248,1709583032793,-697.50319911,0.00021274,2]
[316670250,1709583032803,-318.61447119,0.00021274,2]
[316670252,1709583032811,-5926.31463499,0.00021275,2]
[316670254,1709583032822,-8267.85188578,0.00021275,2]
[316670317,1709583039987,-995.15883,0.00021275,2]
[316670379,1709583043653,-858.11130145,0.00021275,2]
[316670595,1709583419934,704.4497601,0.00018554,2]
[316670597,1709583541951,233.3633315,0.00018453,2]
[316670600,1709583695409,216.3337696,0.00018806,2]
[316670605,1709583800571,7443.8365072,0.00018508,2]
[316670606,1709583815582,3684.37194664,0.00018432,2]
[316670607,1709583815617,8829.70635906,0.00018432,2]
[316670613,1709584153145,-703.4462778,0.00019101,2]
[316670614,1709584153166,-318.61447119,0.00019101,2]
[316670615,1709584153186,-321.57741087,0.00019102,2]
[316670616,1709584153208,-883.98291073,0.00019103,2]
[316670617,1709584153228,-186.31043141,0.00019103,2]
[316670618,1709584153248,-324.89545159,0.00019104,2]
[316670619,1709584153268,-13724.91807251,0.00019104,2]
[316670620,1709584153290,-6917.07011006,0.00019105,2]
[316670621,1709584153310,-623.74333508,0.00019105,2]
[316670622,1709584153330,-214.57920582,0.00019105,2]
[316670623,1709584153446,-66.04903244,0.00019105,2]
[316670630,1709584214232,170.29364094,0.000189,2]
[316670631,1709584214261,103.24475942,0.000189,2]
[316670641,1709584232537,-799.57604016,0.00019173,2]
[316670642,1709584232599,-835.91157725,0.00019173,2]
[316670643,1709584232610,-697.50319911,0.00019174,2]
[316670644,1709584232619,-163.811675,0.00019178,2]
[316670645,1709584232629,-166.666666,0.00019178,2]
[316670646,1709584232639,-186.288497,0.00019178,2]
[316670647,1709584232648,-20851.44723378,0.0002,2]
[316670648,1709584232657,-781.65092481,0.0002,2]
[316670649,1709584232667,-500.0,0.00020263,2]
[316670650,1709584232676,-7259.60864495,0.00021,2]
[316670652,1709584232686,-543.0,0.00022,2]
[316670654,1709584232696,-327.32045809,0.00022,2]
[316670656,1709584232705,-625.97105517,0.00022016,2]
[316670658,1709584232715,-543.0,0.00022192,2]
[316670660,1709584232725,-184.4128114,0.00022274,2]
[316670661,1709584232734,-543.0,0.00022466,2]
[316670663,1709584232744,-703.4462778,0.00022738,2]
[316670665,1709584232753,-318.61447119,0.00022738,2]
[316670666,1709584232765,-321.57741087,0.00022738,2]
[316670667,1709584232776,-324.89545159,0.00022738,2]
[316670668,1709584232786,-883.98291073,0.00022739,2]
[316670669,1709584232796,-543.0,0.0002274,2]
[316670670,1709584232806,-245.0,0.00022803,3]
[316670671,1709584232917,-677.25,0.00022806,3]
[316670672,1709584232950,-2038.86951059,0.00022806,3]
[316670673,1709584232960,-1003.26622181,0.00022807,3]
[316670674,1709584232970,-750.16331109,0.00022807,3]
[316670675,1709584232978,-158.00324607,0.00022807,2]
[316670676,1709584232987,-155.0,0.00023,2]
[316670677,1709584232996,-543.0,0.00023014,2]
[316670678,1709584233006,-543.0,0.00023014,2]
[316670679,1709584233015,-515.5605389,0.00023093,5]
[316670680,1709584233028,-4484.4394611,0.00023093,5]
[316670681,1709584233038,-1171.19125798,0.00023093,5]
[316670682,1709584233046,-1188.16255009,0.00023095,5]
[316670683,1709584233055,-315.90105999,0.00023096,4]
[316670684,1709584233064,-1202.21286849,0.00023096,5]
[316670685,1709584233073,-5000.0,0.00023097,5]
[316670686,1709584233082,-211.33946073,0.00023097,4]
[316670687,1709584233091,-5000.0,0.00023097,5]
[316670688,1709584233100,-1193.88335989,0.00023097,5]
[316670689,1709584233111,-620.29855276,0.00023117,2]
[316670690,1709584233120,-153.0,0.0002337,2]
[316670691,1709584233129,-153.0,0.0002337,2]
[316670692,1709584233138,-153.0,0.0002337,2]
[316670693,1709584233147,-500.0,0.00023657,7]
[316670694,1709584233156,-189.85,0.0002389,3]
[316670695,1709584233166,-569.6,0.0002389,3]
[316670696,1709584233175,-256.82239772,0.00023899,2]
[316670697,1709584233184,-256.8223977,0.00023899,2]
[316670698,1709584233193,-256.8223977,0.000239,2]
[316670699,1709584233203,-256.8223977,0.000239,2]
[316670700,1709584233212,-21353.76105614,0.000239,2]
[316670701,1709584233221,-256.8223977,0.000239,2]
[316670702,1709584233230,-273.53840036,0.000239,2]
[316670703,1709584233239,-646.78905956,0.00023926,2]
[316670704,1709584233248,-8238.30978747,0.0002398,2]
[316670705,1709584233257,-73611.87945268,0.0002398,2]
[316670706,1709584233266,-154.9690062,0.00023998,2]
[316670707,1709584233276,-290.22334133,0.00023998,2]
[316670708,1709584233285,-535.78782311,0.00023998,2]
[316670709,1709584233294,-156.08322571,0.00023998,2]
[316670710,1709584233303,-7712.0751366,0.00023998,2]
[316670711,1709584233312,-173.99017365,0.00023998,2]
[316670712,1709584233321,-1508.1025562,0.00023998,2]
[316670713,1709584233331,-2594.09126452,0.00023998,2]
[316670714,1709584233340,-13293.97236657,0.00023998,2]
[316670715,1709584233350,-385.86658736,0.00023998,2]
[316670716,1709584233360,-155.15251081,0.00023998,2]
[316670717,1709584233369,-280.28110387,0.00023998,2]
[316670718,1709584233378,-157.1486779,0.00023998,2]
[316670719,1709584233388,-228.13682818,0.00023998,2]
[316670720,1709584233397,-1067.12847857,0.00023998,2]
[316670721,1709584233407,-332.19932646,0.00023998,2]
[316670722,1709584233416,-1001.9136096,0.00023998,2]
[316670723,1709584233428,-4630.46756617,0.00023998,2]
[316670724,1709584233438,-247.8812306,0.00023998,2]
[316670725,1709584233447,-85.31797697,0.00023998,2]
[316671264,1709584246783,-100.95364557,0.00023998,2]
[316671266,1709584246793,-475.3223921,0.00023998,2]
[316671268,1709584246805,-1981.31295729,0.00023998,2]
[316671270,1709584246815,-306.37107895,0.00023998,2]
[316671272,1709584246824,-275.93363384,0.00023998,2]
[316671274,1709584246834,-706.34791406,0.00023998,2]
[316671276,1709584246843,-8443.31756199,0.00023999,3]
[316671278,1709584246853,-6568.39770438,0.00023999,2]
[316671280,1709584246866,-198.05828952,0.00023999,2]
[316671283,1709584246887,-279.56981887,0.00023999,2]
[316671284,1709584246896,-264.4576008,0.00024,3]
[316671287,1709584246906,-976.2334403,0.00024,6]
[316671323,1709584247608,-781.65092481,0.00023998,2]
[316671325,1709584247620,-545.22400528,0.00024,6]
[316673878,1709584592824,697.50319911,0.000189,2]
[316673879,1709584598029,883.98291073,0.000189,2]
[316673880,1709584609514,318.61447119,0.000189,2]
[316673881,1709584621201,324.89545159,0.000189,2]
[316673885,1709584822051,703.4462778,0.000189,2]
[316673887,1709584877369,-160.02841284,0.00018903,2]
[316673888,1709584877406,-401.00883587,0.00018904,2]
[316673889,1709584877437,-247.13961119,0.00018905,2]
[316673890,1709584889571,186.74715764,0.00018815,2]
[316673892,1709584897381,186.74715764,0.00018815,2]
[316673893,1709584905480,186.74715764,0.00018815,2]
[316673894,1709584914615,186.74715764,0.00018815,2]
[316673896,1709584922696,697.50319911,0.00018814,2]
[316673897,1709584930819,155.26010531,0.00018814,2]
[316673905,1709585142354,2960.48953794,0.0001879,2]
[316673906,1709585142384,5968.31293016,0.0001879,2]
[316673907,1709585142422,15220.0,0.0001879,2]
[316673908,1709585142450,751.1975319,0.0001879,2]
[316673985,1709585431835,-309.31242531,0.000189,2]
[316673987,1709585431845,-703.4462778,0.00018972,2]
[316673988,1709585431854,-318.61447119,0.00018973,2]
[316673990,1709585431864,-697.50319911,0.00018974,2]
[316673992,1709585431874,-324.89545159,0.00018975,2]
[316673994,1709585431883,-883.98291073,0.00018975,2]
[316673996,1709585431892,-186.74715764,0.00019005,2]
[316673998,1709585431902,-1129.1518949,0.00019698,2]
[316674000,1709585431911,-238.66257272,0.0002,2]
[316674002,1709585431920,-781.65092481,0.00021999,2]
[316674004,1709585431930,-339.0,0.00022,2]
[316674006,1709585431939,-501.58146036,0.00022161,2]
[316674008,1709585431948,-20851.44723378,0.00022161,2]
[316674009,1709585431958,-48750.46099717,0.00022162,5]
[316674012,1709585431970,-1249.53900283,0.00022162,5]
[316674014,1709585431979,-339.0,0.00022192,2]
[316674016,1709585431989,-339.0,0.00022466,2]
[316674018,1709585431998,-339.0,0.0002274,2]
[316674020,1709585432007,-2412.46268536,0.00022809,3]
[316674022,1709585432017,-169.3125,0.00022809,3]
[316674024,1709585432027,-662.45460318,0.00022812,3]
[316674026,1709585432036,-804.32598466,0.00022812,5]
[316674028,1709585432047,-195.67401534,0.00022812,5]
[316674030,1709585432056,-155.0,0.00023,2]
[316674032,1709585432065,-1491.43412177,0.00023001,2]
[316674034,1709585432074,-339.0,0.00023014,2]
[316674036,1709585432084,-339.0,0.00023014,2]
[316674038,1709585432093,-379.7,0.00023091,3]
[316674040,1709585432103,-2299.82411709,0.00023101,5]
[316674042,1709585432116,-6746.77484258,0.00023101,5]
[316674153,1709585438986,-62416.27574552,0.00023101,5]
[316674155,1709585438998,-3224.76222107,0.00023101,5]
[316674157,1709585439008,-1491.43412173,0.00023226,2]
[316674159,1709585439017,-156.3042461,0.0002337,2]
[316674161,1709585439027,-153.0,0.0002337,2]
[316674163,1709585439037,-200.5064595,0.0002337,2]
[316674165,1709585439046,-153.0,0.0002337,2]
[316674167,1709585439055,-153.0,0.0002337,2]
[316674169,1709585439064,-153.0,0.0002337,2]
[316674171,1709585439073,-153.0,0.0002337,2]
[316674173,1709585439083,-1491.43412173,0.00023451,2]
[316674175,1709585439092,-500.0,0.00023657,7]
[316674177,1709585439102,-500.0,0.00023657,7]
[316674179,1709585439111,-315.32,0.00023657,7]
[316674181,1709585439125,-1491.43412173,0.00023675,2]
[316674183,1709585439135,-205.628,0.00023859,2]
[316674185,1709585439146,-37582.13443409,0.000239,2]
[316674187,1709585439161,-32356.20609047,0.000239,2]
[316674189,1709585439172,-393.21122,0.000239,2]
[316674191,1709585439183,-393.21122,0.000239,2]
[316674193,1709585439194,-1491.43412173,0.000239,2]
[316674195,1709585439205,-309.31242531,0.000239,2]
[316674197,1709585439215,-153.0,0.00023918,2]
[316674199,1709585439226,-47.33680213,0.00023918,2]
[316674211,1709585439343,-105.66319787,0.00023918,2]
[316674213,1709585439354,-153.0,0.00023918,2]
[316674215,1709585439367,-153.0,0.00023918,2]
[316674217,1709585439381,-52.41221179,0.0002398,2]
[316674219,1709585439395,-7984.4592,0.0002398,2]
[316674221,1709585439409,-201.43837568,0.0002398,2]
[316674223,1709585439420,-538.54259214,0.00023998,2]
[316674225,1709585439430,-155.36650202,0.00023998,2]
[316674227,1709585439441,-744.79129449,0.00023998,2]
[316674229,1709585439453,-155.09150399,0.00023998,2]
[316674231,1709585439464,-154.98450155,0.00023998,2]
[316674233,1709585439475,-428.32645767,0.00023998,2]
[316674235,1709585439486,-169.99430746,0.00023998,2]
[316674237,1709585439497,-155.32636041,0.00023998,2]
[316674239,1709585439508,-13724.91807251,0.00023998,2]
[316674241,1709585439518,-1426.92090632,0.00023998,2]
[316674243,1709585439529,-151.0,0.00023998,2]
[316674245,1709585439539,-151.0,0.00023998,2]
[316674247,1709585439551,-238.42670154,0.00023998,2]
[316674249,1709585439562,-159.81994913,0.00023998,2]
[316674250,1709585439574,-393.21122,0.00023998,2]
[316674252,1709585439585,-393.21122,0.00023998,2]
[316674254,1709585439596,-200.109984,0.00023998,2]
[316674256,1709585439608,-219.541162,0.00023998,2]
[316674258,1709585439619,-219.541162,0.00023998,2]
[316674260,1709585439634,-557.80133072,0.00023998,2]
[316674262,1709585439645,-248.866838,0.00023998,2]
[316674264,1709585439657,-151.0,0.00023998,2]
[316674266,1709585439668,-2850.372166,0.00023998,2]
[316674268,1709585439680,-2850.372166,0.00023998,2]
[316674270,1709585439691,-201.111023,0.00023998,2]
[316674272,1709585439702,-1671.59010655,0.00023999,2]
[316674274,1709585439714,-210.7834226,0.00023999,2]
[316674276,1709585439725,-500.0,0.00023999,2]
[316674278,1709585439736,-500.0,0.00023999,2]
[316674280,1709585439748,-500.0,0.00023999,2]
[316674282,1709585439759,-500.0,0.00023999,2]
[316674284,1709585439771,-500.0,0.00023999,2]
[316674286,1709585439783,-500.0,0.00023999,2]
[316674289,1709585439795,-500.0,0.00023999,2]
[316674291,1709585439807,-500.0,0.00023999,2]
[316674293,1709585439818,-500.0,0.00023999,2]
[316674294,1709585439829,-392.87446433,0.00023999,2]
[316674297,1709585439840,-500.0,0.00023999,2]
[316674298,1709585439850,-500.0,0.00023999,2]
[316674300,1709585439861,-500.0,0.00023999,2]
[316674303,1709585439872,-500.0,0.00023999,2]
[316674304,1709585439885,-500.0,0.00023999,2]
[316674306,1709585439896,-500.0,0.00023999,2]
[316674309,1709585439908,-500.0,0.00023999,2]
[316674311,1709585439919,-500.0,0.00023999,2]
[316674314,1709585439929,-500.0,0.00023999,2]
[316674317,1709585439940,-500.0,0.00023999,2]
[316674319,1709585439950,-500.0,0.00023999,2]
[316674322,1709585439961,-553.9111508,0.00023999,2]
[316674325,1709585439971,-500.0,0.00023999,2]
[316674327,1709585439982,-500.0,0.00023999,2]
[316674330,1709585439992,-500.0,0.00023999,2]
[316674332,1709585440003,-500.0,0.00023999,2]
[316674334,1709585440013,-500.0,0.00023999,2]
[316674336,1709585440024,-500.0,0.00023999,2]
[316674338,1709585440034,-500.0,0.00023999,2]
[316674340,1709585440045,-500.0,0.00023999,2]
[316674342,1709585440055,-500.0,0.00023999,2]
[316674344,1709585440066,-500.0,0.00023999,2]
[316674346,1709585440076,-500.0,0.00023999,2]
[316674348,1709585440090,-500.0,0.00023999,2]
[316674350,1709585440100,-500.0,0.00023999,2]
[316674352,1709585440110,-500.0,0.00023999,2]
[316674354,1709585440128,-332.16084638,0.00023999,2]
[316674356,1709585440138,-300.0,0.00023999,2]
[316674358,1709585440148,-219.541162,0.00023999,2]
[316674360,1709585440158,-219.541162,0.00023999,2]
[316674362,1709585440168,-151.0,0.00023999,2]
[316674364,1709585440177,-2850.372166,0.00023999,2]
[316674366,1709585440187,-2850.372166,0.00023999,2]
[316674368,1709585440199,-201.111023,0.00023999,2]
[316674370,1709585440209,-264.45760079,0.00024,3]
[316674372,1709585440219,-29681.1550309,0.00024,6]
[316674374,1709585440230,-155.51762666,0.00024,2]
[316674376,1709585440240,-71008.60964161,0.00024,6]
[316674442,1709585441048,-201.111023,0.00023998,2]
[316674444,1709585441057,-201.111023,0.00023999,2]
[316674446,1709585441066,-4329.37846479,0.00024,6]
[316674453,1709585441130,-67469.45829835,0.00024,6]
[316674937,1709585445967,-181.42355345,0.00023998,2]
[316674939,1709585445976,-697.50319911,0.00023998,2]
[316674940,1709585445986,-297.07324744,0.00024,6]
[316674947,1709585446041,-5005.8255,0.00024,6]
[316675829,1709585455152,-883.98291073,0.00023998,2]
[316675831,1709585455163,-188.2045987,0.00023998,2]
[316675832,1709585455173,-324.89545159,0.00023998,2]
[316675834,1709585455183,-214.50892528,0.00023998,2]
[316675836,1709585455193,-662.81191697,0.00023998,2]
[316675838,1709585455202,-318.61447119,0.00023999,2]
[316675840,1709585455212,-781.65092481,0.00023999,2]
[316675842,1709585455222,-5236.95951645,0.00023999,2]
[316675845,1709585455235,-1300.56352255,0.00023999,2]
[316675847,1709585455249,-15321.71980182,0.00023999,2]
[316675849,1709585455258,-72570.96801511,0.00024,6]
[316679993,1709585600310,188.0,0.00027,120]
[316679994,1709585652076,185.10796417,0.00018179,2]
[316680117,1709586472243,212.0,0.00027,120]
[316680301,1709586634565,-324.89545159,0.00020446,2]
[316680303,1709586634576,-1038.96741228,0.00020447,2]
[316680305,1709586634585,-318.61447119,0.00020653,2]
[316680307,1709586634594,-781.65092481,0.00020653,2]
[316680309,1709586634603,-154.98450155,0.00020654,2]
[316680311,1709586634613,-883.98291073,0.00020654,2]
[316680313,1709586634623,-154.98450155,0.00020655,2]
[316680315,1709586634632,-1635.48761741,0.00020656,2]
[316680317,1709586634641,-697.50319911,0.00020656,2]
[316680318,1709586634651,-24900.0,0.00020771,2]
[316680320,1709586634662,-424.0,0.00022,2]
[316680322,1709586634671,-424.0,0.00022192,2]
[316680324,1709586634681,-1007.22959258,0.00022815,2]
[316680327,1709586634691,-9129.35729573,0.00022815,2]
[316680328,1709586634700,-2579.82681132,0.00022816,3]
[316680329,1709586634709,-773.9480434,0.00022816,3]
[316680330,1709586634719,-183.8893394,0.00022817,3]
[316680331,1709586634729,-424.0,0.00023014,2]
[316680332,1709586634828,-153.0,0.00023014,2]
[316680333,1709586634842,-5000.0,0.00023091,5]
[316680334,1709586634851,-25934.8116635,0.00023096,5]
[316680335,1709586634860,-7780.44349905,0.00023096,5]
[316680336,1709586634869,-2243.58171473,0.00023096,5]
[316680337,1709586634878,-9208.62290481,0.000238,2]
[316680338,1709586634887,-3499.78525409,0.000239,2]
[316680339,1709586634898,-159.66,0.00023901,3]
[316680340,1709586634907,-10204.89192571,0.00023911,2]
[316680341,1709586634918,-4700.1876837,0.0002398,2]
[316680342,1709586634927,-9732.99665347,0.00023998,2]
[316680343,1709586634936,-475.3223921,0.00023998,2]
[316680344,1709586634945,-155.04341216,0.00023998,2]
[316680345,1709586634954,-280.28110387,0.00023998,2]
[316680346,1709586634964,-744.79129449,0.00023998,2]
[316680347,1709586634973,-155.04341216,0.00023998,2]
[316680348,1709586634982,-176.12476793,0.00023998,2]
[316680349,1709586634992,-1585.08772013,0.00023998,2]
[316680350,1709586635002,-402.12562078,0.00023998,2]
[316680351,1709586635011,-155.63856023,0.00023998,2]
[316680352,1709586635021,-557.44319736,0.00023998,2]
[316680353,1709586635032,-651.0577104,0.00023998,2]
[316680354,1709586635042,-354.37392672,0.00023998,2]
[316680355,1709586635052,-155.16455241,0.00023998,2]
[316680356,1709586635063,-235.33749404,0.00023998,2]
[316680357,1709586635073,-1932.00247589,0.00023998,2]
[316680358,1709586635084,-155.33403758,0.00023998,2]
[316680359,1709586635095,-400.0,0.00023998,2]
[316680360,1709586635106,-156.31288912,0.00023998,2]
[316680361,1709586635116,-623.38533298,0.00023998,2]
[316680362,1709586635127,-291.08493038,0.00023998,2]
[316680363,1709586635137,-185.27271988,0.00023998,2]
[316680364,1709586635149,-160.36276259,0.00023998,2]
[316680365,1709586635160,-151.0,0.00023999,2]
[316680366,1709586635171,-20843.89309107,0.00023999,2]
[316680367,1709586635182,-39158.81680902,0.00024,6]
[316680368,1709586635196,-9451.62985769,0.00024,6]
[316680369,1709586635212,-1863.57471211,0.00024,6]
[316680370,1709586635228,-1593.77909322,0.00024,6]
[316680371,1709586635240,-32623.65571349,0.00024,6]
[316680372,1709586635252,-71531.35664591,0.00024,6]
[316680730,1709586640971,-154.98450155,0.00020448,2]
[316680732,1709586640981,-2016.08549845,0.00024,6]
[316680980,1709586642973,-3086.15831733,0.00024,6]
[316680985,1709586643040,-96094.79411179,0.00024,6]
[316680987,1709586643052,-886.027425,0.00024,6]
[316681002,1709586643128,-321.58043892,0.00024,6]
[316681327,1709586646167,-478.98,0.0002399,3]
[316681329,1709586646178,-1238.24029911,0.00023999,2]
[316681331,1709586646188,-324.89545159,0.00023999,2]
[316681333,1709586646197,-33180.50196385,0.00024,6]
[316681335,1709586646208,-734.96,0.00024,6]
[316686034,1709586936938,180.0,0.00027,120]
[316686056,1709587350827,156.43613551,0.00027,120]
[316686151,1709587835345,-883.98291073,0.00020654,2]
[316686153,1709587835355,-781.65092481,0.00020655,2]
[316686155,1709587835365,-324.89545159,0.00020655,2]
[316686157,1709587835374,-154.98450155,0.00020656,2]
[316686159,1709587835384,-82.49141054,0.00020657,2]
[316686423,1709587838163,-615.01178857,0.00020657,2]
[316686425,1709587838172,-1106.5463764,0.00020658,2]
[316686427,1709587838182,-14736.3374646,0.00021601,2]
[316686429,1709587838194,-20000.0,0.00022,10]
[316686431,1709587838203,-265.0,0.00022,2]
[316686434,1709587838213,-1168.48683973,0.00022176,2]
[316686435,1709587838222,-265.0,0.00022192,2]
[316686437,1709587838232,-236.25,0.00022822,3]
[316686439,1709587838241,-1000.0,0.00022822,5]
[316686442,1709587838250,-254.76332005,0.00022822,3]
[316686444,1709587838260,-265.0,0.00023014,2]
[316686446,1709587838269,-6886.83728963,0.00023099,5]
[316686447,1709587838278,-5000.0,0.00023099,5]
[316686449,1709587838287,-475.10764107,0.00023099,4]
[316686451,1709587838296,-10908.2818973,0.000231,5]
[316686453,1709587838305,-202.98535702,0.00023103,4]
[316686455,1709587838315,-155.0,0.00023657,2]
[316686457,1709587838324,-7212.49421083,0.000239,2]
[316686459,1709587838333,-5318.51412173,0.000239,2]
[316686461,1709587838342,-319.32,0.0002399,3]
[316686463,1709587838351,-155.0558201,0.00023998,2]
[316686465,1709587838361,-155.0418613,0.00023998,2]
[316686467,1709587838370,-2804.999994,0.00023998,2]
[316686469,1709587838379,-178.81044341,0.00023998,2]
[316686471,1709587838389,-2790.81002196,0.00023998,2]
[316686473,1709587838399,-334.59809481,0.00023998,2]
[316686476,1709587838408,-649.73060501,0.00023998,2]
[316686477,1709587838418,-744.79129449,0.00023998,2]
[316686480,1709587838428,-170.85740309,0.00023998,2]
[316686482,1709587838440,-7560.0,0.00023998,2]
[316686484,1709587838449,-280.59313816,0.00023999,2]
[316686486,1709587838458,-206.35115135,0.00023999,2]
[316686488,1709587838468,-8868.60927529,0.00023999,2]
[316686490,1709587838477,-500.0,0.00023999,2]
[316686492,1709587838486,-416.99443606,0.00023999,2]
[316686494,1709587838495,-204.4532614,0.00023999,2]
[316686496,1709587838505,-36352.2242282,0.00024,6]
[316687197,1709587844519,-154.98450155,0.00020446,2]
[316687199,1709587844528,-154.98450155,0.00020653,2]
[316687201,1709587844537,-1449.07557445,0.00024,6]
[316687204,1709587844549,-8830.58596752,0.00024,6]
[316687206,1709587844561,-3440.996515,0.00024,6]
[316687663,1709587849812,-509.74928855,0.00023999,2]
[316687665,1709587849826,-3247.15126968,0.00023999,2]
[316687667,1709587849835,-40627.91075832,0.00024,6]
[316693226,1709587917282,-856124.08853678,0.00027,30]
[316693227,1709587917330,-334.665,0.00027,30]
[316693228,1709587917377,-172.698063,0.00027397,120]
[316693229,1709587917509,-159.95,0.00027651,35]
[316693230,1709587917556,-150.5,0.00027661,35]
[316693231,1709587917603,-184.68,0.00027661,35]
[316693232,1709587917651,-203.25,0.00027661,35]
[316693233,1709587917699,-174.360157,0.00027671,35]
[316693234,1709587917746,-174.360157,0.00027671,52]
[316693235,1709587917794,-174.360157,0.00027671,69]
[316693236,1709587917842,-174.360157,0.00027671,86]
[316693237,1709587917889,-174.360157,0.00027671,103]
[316693238,1709587917934,-174.360157,0.00027671,119]
[316693239,1709587917983,-2500.0,0.00029,120]
[316693240,1709587918032,-2000.0,0.00029863,30]
[316693241,1709587918168,-2000.0,0.00029863,30]
[316693242,1709587918218,-2000.0,0.00029863,30]
[316693243,1709587918268,-2000.0,0.00029863,30]
[316693244,1709587918315,-2000.0,0.00029863,30]